bitfinex/quotes_SOLUSD_20250313
["timestamp","ask_amount","ask_price","bid_price","bid_amount"]
[1741880687055,36.09417946,124.9,124.87,0.14216157]
[1741880687257,36.09417946,124.9,124.85,193.17716595]
[1741880687258,8.0344,124.93,124.86,36.09417946]
[1741880687460,36.09417946,124.91,124.86,36.09417946]
[1741880687775,18.64964886,124.92,124.85,0.14216157]
[1741880687957,36.09417946,124.9,124.85,44.3877026]
[1741880688161,36.09417946,124.91,124.85,44.3877026]
[1741880688664,36.09417946,124.9,124.85,44.3877026]
[1741880689262,36.09417946,124.91,124.85,356.3877026]
[1741880689462,36.09417946,124.91,124.85,44.3877026]
[1741880689662,36.09417946,124.9,124.85,44.3877026]
[1741880690064,36.09417946,124.9,124.85,0.14216157]
[1741880690265,36.09417946,124.89,124.85,0.14216157]
[1741880690776,44.10127946,124.89,124.85,0.14216157]
[1741880690976,36.09417946,124.87,124.85,0.14216157]
[1741880691165,36.09417946,124.87,124.84,0.063]
[1741880691852,8.0057,124.91,124.85,0.14216157]
[1741880692053,36.09417946,124.88,124.85,0.14216157]
[1741880692650,36.09417946,124.9,124.85,0.14216157]
[1741880692867,36.09417946,124.9,124.86,8.0089]
[1741880693071,36.09417946,124.9,124.87,0.14216157]
[1741880693278,8.0053,124.92,124.87,0.14216157]
[1741880693460,36.09417946,124.9,124.87,0.14216157]
[1741880693778,36.09417946,124.91,124.87,0.14216157]
[1741880694151,0.03,124.93,124.87,0.28432314]
[1741880694453,36.09417946,124.92,124.87,0.28432314]
[1741880694653,36.09417946,124.91,124.87,0.14216157]
[1741880694877,36.12417946,124.93,124.87,44.3868026]
[1741880695062,0.03,124.93,124.91,0.14216157]
[1741880695459,8.0345,124.93,124.91,0.14216157]
[1741880695660,8.0345,124.93,124.89,0.14216157]
[1741880695855,36.12417946,124.93,124.89,0.14216157]
[1741880696366,0.03,124.93,124.88,0.28432314]
[1741880696573,0.03,124.93,124.88,36.3785026]
[1741880696760,36.12417946,124.93,124.88,36.3785026]
[1741880696960,36.12417946,124.93,124.9,0.14216157]
[1741880697558,0.03,124.93,124.9,0.14216157]
[1741880697856,36.12417946,124.93,124.9,0.14216157]
[1741880698057,36.09417946,124.92,124.88,312.28432314]
[1741880698775,36.09417946,124.92,124.88,0.14216157]
[1741880698958,36.09417946,124.91,124.88,0.14216157]
[1741880699660,36.09417946,124.89,124.86,136.9]
[1741880699857,36.09417946,124.88,124.84,0.34732314]
[1741880700150,36.09417946,124.88,124.84,0.20516157]
[1741880700355,36.09417946,124.85,124.84,0.063]
[1741880701074,36.09417946,124.86,124.84,0.063]
[1741880701881,36.09417946,124.88,124.84,0.063]
[1741880702280,36.09417946,124.86,124.84,0.063]
[1741880702579,36.09417946,124.85,124.84,0.063]
[1741880702978,44.10377946,124.85,124.84,0.063]
[1741880703368,36.09417946,124.85,124.84,0.063]
[1741880705175,44.10377946,124.85,124.84,0.063]
[1741880705781,62.75342832,124.85,124.84,0.063]
[1741880705982,62.89558989,124.85,124.84,0.0001]
[1741880706279,20.0,124.82,124.8,0.063]
[1741880706460,36.09417946,124.81,124.8,0.063]
[1741880707563,6.3708,124.88,124.8,36.15717946]
[1741880707769,36.09417946,124.85,124.82,0.14216157]
[1741880707989,14.3787,124.88,124.8,0.063]
[1741880707990,36.09417946,124.84,124.8,0.063]
[1741880708180,36.09417946,124.82,124.8,0.063]
[1741880708380,36.09417946,124.81,124.8,0.063]
[1741880709096,44.10627946,124.81,124.8,0.063]
[1741880709399,62.75592832,124.81,124.8,0.063]
[1741880709907,20.0,124.78,124.77,0.063]
[1741880710202,26.66174886,124.81,124.77,0.063]
[1741880710487,36.09417946,124.79,124.77,0.063]
[1741880710674,36.09417946,124.78,124.77,0.063]
[1741880711466,62.75792832,124.78,124.77,0.063]
[1741880711669,20.0,124.78,124.77,0.063]
[1741880711895,56.09417946,124.78,124.77,0.063]
[1741880712092,20.0,124.78,124.77,0.063]
[1741880712298,56.09417946,124.78,124.77,0.063]
[1741880712598,74.74382832,124.78,124.77,0.063]
[1741880713109,82.75792832,124.78,124.77,0.063]
[1741880713500,83.04225146,124.78,124.74,0.063]
[1741880713674,56.09417946,124.75,124.74,0.063]
[1741880713997,74.74382832,124.75,124.74,0.063]
[1741880714298,8.15626157,124.78,124.74,0.063]
[1741880714299,20.0,124.76,124.74,0.063]
[1741880714594,36.09417946,124.77,124.74,0.063]
[1741880714791,82.8,124.79,124.75,0.14216157]
[1741880715002,36.09417946,124.81,124.76,44.10887946]
[1741880715194,18.64964886,124.82,124.76,44.10887946]
[1741880715378,18.64964886,124.82,124.77,0.28432314]
[1741880715379,36.09417946,124.82,124.77,0.28432314]
[1741880715690,8.0098,124.85,124.79,0.28432314]
[1741880715884,8.0098,124.85,124.77,0.28432314]
[1741880716193,8.0098,124.85,124.75,193.31932752]
[1741880716194,36.09417946,124.78,124.75,8.15806157]
[1741880716400,36.09417946,124.79,124.75,8.15806157]
[1741880716600,20.0,124.81,124.76,0.14216157]
[1741880716774,20.0,124.81,124.77,0.14216157]
[1741880716775,56.09417946,124.81,124.77,0.14216157]
[1741880716980,36.09417946,124.79,124.75,0.14216157]
[1741880717181,20.0,124.81,124.75,8.15786157]
[1741880717374,36.09417946,124.8,124.75,44.25204103]
[1741880717594,36.09417946,124.8,124.75,8.15786157]
[1741880717898,36.09417946,124.81,124.77,0.14216157]
[1741880718277,36.09417946,124.82,124.77,0.14216157]
[1741880719092,36.09417946,124.81,124.77,0.14216157]
[1741880719288,36.09417946,124.8,124.76,0.14216157]
[1741880719595,36.09417946,124.78,124.75,0.14216157]
[1741880719994,36.09417946,124.76,124.74,0.063]
[1741880720183,36.09417946,124.75,124.74,0.063]
[1741880722609,26.66374886,124.78,124.74,0.063]
[1741880722897,36.09417946,124.76,124.74,0.063]
[1741880723279,6.3772,124.81,124.74,0.063]
[1741880723501,8.011,124.83,124.75,36.3785026]
[1741880723679,36.09417946,124.79,124.75,0.14216157]
[1741880723877,36.09417946,124.78,124.75,0.14216157]
[1741880724083,6.0483,124.84,124.76,0.14216157]
[1741880724387,36.09417946,124.8,124.76,0.14216157]
[1741880724595,36.09417946,124.79,124.76,0.14216157]
[1741880724918,36.09417946,124.78,124.74,9.323]
[1741880725083,18.64964886,124.83,124.74,9.323]
[1741880725084,36.09417946,124.76,124.74,9.323]
[1741880725283,20.0,124.79,124.75,0.14216157]
[1741880725498,36.09417946,124.78,124.74,17.3394]
[1741880725800,36.09417946,124.77,124.74,9.323]
[1741880726008,44.10827946,124.78,124.74,9.323]
[1741880726502,36.09417946,124.75,124.74,0.063]
[1741880727707,36.09417946,124.76,124.74,0.063]
[1741880728483,36.09417946,124.75,124.74,0.063]
[1741880729312,8.0141,124.78,124.74,0.063]
[1741880729313,36.09417946,124.76,124.74,0.063]
[1741880729511,36.09417946,124.75,124.74,0.063]
[1741880730719,44.11017946,124.75,124.74,0.063]
[1741880731090,62.75982832,124.75,124.74,0.063]
[1741880731701,98.85400778,124.75,124.74,0.063]
[1741880732115,38.64964886,124.73,124.72,0.063]
[1741880732290,74.74382832,124.73,124.72,0.063]
[1741880732801,74.88598989,124.73,124.72,0.0001]
[1741880733209,20.0,124.69,124.67,0.063]
[1741880733413,36.09417946,124.68,124.67,0.063]
[1741880734014,44.11467946,124.68,124.67,0.063]
[1741880734197,98.85850778,124.68,124.67,0.063]
[1741880734597,99.00066935,124.68,124.67,0.063]
[1741880734804,100.51680778,124.68,124.67,0.063]
[1741880735105,38.64964886,124.65,124.64,0.063]
[1741880735312,74.74382832,124.65,124.64,0.063]
[1741880736116,56.09417946,124.65,124.64,0.063]
[1741880736709,82.76622832,124.65,124.64,0.063]
[1741880736924,74.74382832,124.65,124.64,0.063]
[1741880737098,37.75247946,124.68,124.64,0.063]
[1741880737421,18.64964886,124.67,124.64,0.063]
[1741880737594,36.09417946,124.65,124.64,0.063]
[1741880739614,54.74382832,124.65,124.64,0.063]
[1741880739819,62.76622832,124.65,124.64,0.063]
[1741880740404,54.74382832,124.65,124.64,0.063]
[1741880741320,36.09417946,124.66,124.64,0.063]
[1741880741496,36.09417946,124.67,124.64,0.063]
[1741880741697,36.09417946,124.66,124.64,0.063]
[1741880741904,36.09417946,124.65,124.64,0.063]
[1741880742214,36.09417946,124.67,124.64,0.063]
[1741880742421,36.09417946,124.66,124.64,0.063]
[1741880742607,18.64964886,124.68,124.64,0.063]
[1741880742608,36.09417946,124.65,124.64,0.063]
[1741880742807,36.09417946,124.66,124.64,0.063]
[1741880743016,36.09417946,124.67,124.64,0.063]
[1741880743717,36.09417946,124.66,124.64,0.063]
[1741880743922,36.09417946,124.65,124.64,0.063]
[1741880744095,36.09417946,124.66,124.64,0.063]
[1741880744409,18.64964886,124.68,124.64,0.063]
[1741880744618,36.09417946,124.68,124.64,0.063]
[1741880744916,36.09417946,124.67,124.64,0.063]
[1741880745102,36.09417946,124.68,124.64,0.063]
[1741880745310,36.09417946,124.7,124.65,36.23634103]
[1741880745902,82.8,124.74,124.68,0.14216157]
[1741880746228,36.09417946,124.74,124.69,44.11397946]
[1741880746401,36.09417946,124.73,124.69,8.0198]
[1741880746723,25.151,124.76,124.7,0.14216157]
[1741880746926,36.09417946,124.73,124.7,0.14216157]
[1741880747128,29.93161865,124.78,124.7,36.23634103]
[1741880747129,36.09417946,124.75,124.7,36.23634103]
[1741880747309,1.6366,124.8,124.75,0.14216157]
[1741880747622,0.03,124.81,124.76,0.14216157]
[1741880747801,0.03,124.81,124.74,0.14216157]
[1741880747802,18.64964886,124.8,124.74,0.14216157]
[1741880748146,0.03,124.81,124.74,44.3948026]
[1741880748322,0.03,124.81,124.74,36.23634103]
[1741880748323,36.09417946,124.79,124.74,36.23634103]
[1741880748504,0.03,124.81,124.73,9.16]
[1741880748505,36.09417946,124.77,124.73,9.16]
[1741880748705,36.09417946,124.78,124.74,0.14216157]
[1741880748908,36.09417946,124.78,124.73,45.25417946]
[1741880749116,56.09417946,124.79,124.74,0.14216157]
[1741880749302,36.09417946,124.76,124.72,6.76106157]
[1741880750032,36.09417946,124.77,124.73,0.14216157]
[1741880750214,36.09417946,124.78,124.73,36.3785026]
[1741880750522,36.09417946,124.79,124.73,36.3785026]
[1741880751204,54.74382832,124.8,124.72,6.76106157]
[1741880751515,36.09417946,124.78,124.73,36.3785026]
[1741880751713,8.0423,124.81,124.75,0.14216157]
[1741880751919,8.0423,124.81,124.75,0.28432314]
[1741880751920,36.09417946,124.79,124.75,0.28432314]
[1741880752116,44.10767946,124.79,124.73,36.23634103]
[1741880752335,36.09417946,124.77,124.73,0.14216157]
[1741880752529,36.09417946,124.77,124.73,0.28432314]
[1741880752909,36.09417946,124.77,124.73,0.14216157]
[1741880753109,36.09417946,124.76,124.72,6.76106157]
[1741880753416,36.09417946,124.75,124.72,6.76106157]
[1741880753617,36.09417946,124.74,124.7,0.28432314]
[1741880753811,36.09417946,124.73,124.7,0.14216157]
[1741880754224,44.11147946,124.73,124.7,0.14216157]
[1741880754414,36.09417946,124.72,124.68,6.5608]
[1741880754612,36.09417946,124.7,124.66,0.14216157]
[1741880755212,8.0162,124.75,124.69,0.14216157]
[1741880755402,36.09417946,124.74,124.69,0.14216157]
[1741880755608,8.0149,124.77,124.71,36.3785026]
[1741880755817,36.09417946,124.76,124.71,36.3785026]
[1741880756022,36.09417946,124.78,124.73,36.3785026]
[1741880756226,36.09417946,124.77,124.73,0.14216157]
[1741880756528,36.09417946,124.75,124.71,0.14216157]
[1741880756710,36.09417946,124.74,124.71,0.14216157]
[1741880756907,36.09417946,124.72,124.66,0.28432314]
[1741880757212,36.09417946,124.7,124.66,0.14216157]
[1741880757413,36.09417946,124.69,124.66,0.14216157]
[1741880757624,36.09417946,124.74,124.68,0.14216157]
[1741880757625,18.64964886,124.74,124.68,0.14216157]
[1741880757826,36.09417946,124.72,124.68,0.14216157]
[1741880758012,36.09417946,124.72,124.66,36.3785026]
[1741880758211,8.0186,124.71,124.66,36.3785026]
[1741880758413,8.0186,124.71,124.66,0.28432314]
[1741880758617,44.11277946,124.71,124.66,36.3785026]
[1741880758812,36.09417946,124.71,124.66,36.3785026]
[1741880759212,36.09417946,124.7,124.66,0.14216157]
[1741880759421,8.0182,124.72,124.66,0.14216157]
[1741880759625,36.09417946,124.72,124.66,36.23634103]
[1741880759822,36.09417946,124.7,124.66,0.14216157]
[1741880760041,18.64964886,124.72,124.65,6.6597]
[1741880760217,36.09417946,124.68,124.64,0.20516157]
[1741880760418,36.09417946,124.67,124.66,0.063]
[1741880760934,36.09417946,124.68,124.66,0.063]
[1741880761230,38.79181043,124.65,124.64,0.0001]
[1741880761414,20.0,124.62,124.61,0.063]
[1741880761612,54.74382832,124.62,124.61,0.063]
[1741880761814,82.8,124.67,124.61,0.063]
[1741880762031,36.09417946,124.65,124.61,0.063]
[1741880762231,36.09417946,124.62,124.61,0.063]
[1741880762931,54.74382832,124.62,124.61,0.063]
[1741880763122,90.98016935,124.62,124.61,0.063]
[1741880763523,9.42,124.63,124.61,0.063]
[1741880763719,36.09417946,124.63,124.61,0.063]
[1741880764235,36.09417946,124.64,124.61,0.063]
[1741880764739,36.09417946,124.63,124.61,0.063]
[1741880764919,36.09417946,124.62,124.61,0.063]
[1741880765122,54.74382832,124.62,124.61,0.063]
[1741880765325,90.83800778,124.62,124.61,0.063]
[1741880766221,90.98016935,124.62,124.61,0.063]
[1741880766432,90.83800778,124.62,124.61,0.063]
[1741880766625,54.74382832,124.62,124.61,0.063]
[1741880767138,20.0,124.63,124.61,0.063]
[1741880767515,36.09417946,124.63,124.61,0.063]
[1741880768618,90.83800778,124.62,124.61,0.063]
[1741880768819,90.98016935,124.62,124.61,0.063]
[1741880769017,46.62618553,124.68,124.61,0.063]
[1741880769018,10.53200607,124.68,124.61,0.063]
[1741880769217,36.09417946,124.67,124.61,36.15717946]
[1741880769418,6.4511,124.68,124.62,0.14216157]
[1741880769736,36.09417946,124.64,124.61,0.063]
[1741880769941,36.09417946,124.65,124.61,0.063]
[1741880770130,36.09417946,124.63,124.61,0.063]
[1741880770330,36.09417946,124.64,124.61,0.063]
[1741880770533,36.09417946,124.65,124.61,0.063]
[1741880770731,36.09417946,124.62,124.61,0.063]
[1741880771240,36.09417946,124.63,124.61,0.063]
[1741880771423,36.09417946,124.62,124.61,0.063]
[1741880771629,54.74382832,124.62,124.61,0.063]
[1741880771819,18.64964886,124.64,124.61,0.063]
[1741880772013,82.8,124.67,124.61,36.15717946]
[1741880772217,36.09417946,124.67,124.62,36.09417946]
[1741880772639,36.09417946,124.68,124.63,0.14216157]
[1741880772833,36.09417946,124.67,124.62,44.11817946]
[1741880773159,36.09417946,124.65,124.61,8.0879]
[1741880773326,18.64964886,124.64,124.61,0.063]
[1741880773531,36.09417946,124.63,124.61,0.063]
[1741880773720,18.64964886,124.65,124.61,0.063]
[1741880773922,9.96,124.67,124.61,0.063]
[1741880773923,36.09417946,124.66,124.61,8.0878]
[1741880774740,1.5318,124.7,124.62,10.28432314]
[1741880774741,36.09417946,124.7,124.62,10.28432314]
[1741880774945,36.09417946,124.67,124.62,10.14216157]
[1741880775147,36.09417946,124.67,124.62,46.23634103]
[1741880775348,36.09417946,124.68,124.62,46.23634103]
[1741880776037,36.09417946,124.67,124.62,10.14216157]
[1741880776227,36.09417946,124.67,124.62,45.73634103]
[1741880776433,36.09417946,124.68,124.62,45.73634103]
[1741880776734,36.09417946,124.68,124.63,8.0237]
[1741880777254,36.09417946,124.7,124.64,36.09417946]
[1741880777421,36.09417946,124.7,124.63,0.14216157]
[1741880777422,36.09417946,124.68,124.63,6.1854]
[1741880777625,36.09417946,124.68,124.63,42.27957946]
[1741880777843,36.09417946,124.68,124.63,6.1854]
[1741880778432,36.09417946,124.67,124.63,6.1854]
[1741880778629,36.09417946,124.67,124.62,9.64216157]
[1741880778846,36.09417946,124.66,124.62,9.64216157]
[1741880779045,20.0,124.65,124.61,0.063]
[1741880779247,36.09417946,124.62,124.61,0.063]
[1741880779437,54.74382832,124.62,124.61,0.063]
[1741880779638,90.83800778,124.62,124.61,0.063]
[1741880779829,90.98016935,124.62,124.61,0.0001]
[1741880780345,90.98016935,124.62,124.55,36.09417946]
[1741880780346,36.09417946,124.62,124.55,36.09417946]
[1741880780550,8.0232,124.64,124.58,36.09417946]
[1741880780759,36.09417946,124.63,124.58,36.09417946]
[1741880781056,36.09417946,124.62,124.56,36.23634103]
[1741880781256,36.09417946,124.61,124.56,36.23634103]
[1741880781428,36.09417946,124.61,124.55,46.15417946]
[1741880781630,36.09417946,124.59,124.52,6.15516157]
[1741880781841,36.09417946,124.58,124.53,36.09417946]
[1741880782044,36.09417946,124.58,124.54,0.14216157]
[1741880782250,36.09417946,124.59,124.54,36.23634103]
[1741880782442,54.41546481,124.57,124.52,60.57062638]
[1741880782842,54.41546481,124.56,124.52,6.15516157]
[1741880783046,26.67654886,124.58,124.52,68.60122638]
[1741880783047,54.41546481,124.57,124.52,68.60122638]
[1741880783257,54.41546481,124.57,124.52,68.60142638]
[1741880783564,18.64964886,124.58,124.53,54.41546481]
[1741880783859,18.64964886,124.58,124.52,14.18596157]
[1741880784058,54.41546481,124.56,124.52,0.14216157]
[1741880784247,54.41546481,124.55,124.51,0.063]
[1741880784447,54.41546481,124.54,124.51,0.063]
[1741880784764,90.8238,124.63,124.54,0.28432314]
[1741880784951,145.23926481,124.63,124.57,54.41546481]
[1741880785258,73.06511367,124.61,124.55,60.60466481]
[1741880785448,54.41546481,124.6,124.55,6.1892]
[1741880785644,20.0,124.56,124.51,0.063]
[1741880785849,18.64964886,124.59,124.52,54.41546481]
[1741880786158,73.06511367,124.59,124.53,54.44546481]
[1741880786338,137.21546481,124.6,124.54,54.55762638]
[1741880786658,137.21546481,124.6,124.55,54.41546481]
[1741880786659,82.8,124.6,124.55,54.41546481]
[1741880786871,81.09041367,124.61,124.55,54.41546481]
[1741880787175,54.41546481,124.59,124.53,54.44546481]
[1741880787342,54.41546481,124.58,124.53,0.03]
[1741880787540,54.41546481,124.59,124.53,54.44546481]
[1741880787747,54.41546481,124.58,124.53,54.44546481]
[1741880787944,54.41546481,124.58,124.53,0.03]
[1741880788153,54.41546481,124.57,124.53,0.03]
[1741880788360,54.41546481,124.58,124.53,0.03]
[1741880788562,62.44306481,124.57,124.53,0.03]
[1741880788757,54.41546481,124.54,124.53,0.03]
[1741880789151,73.06511367,124.54,124.53,0.03]
[1741880790242,73.06511367,124.54,124.51,0.063]
[1741880790243,0.14216157,124.52,124.51,0.063]
[1741880790448,73.34943681,124.52,124.51,0.0001]
[1741880790649,135.79570162,124.52,124.51,0.0001]
[1741880790849,20.0,124.45,124.4,0.03]
[1741880791052,54.41546481,124.44,124.4,0.03]
[1741880791258,18.64964886,124.45,124.4,0.03]
[1741880791447,54.41546481,124.44,124.4,0.03]
[1741880791653,18.64964886,124.45,124.4,0.03]
[1741880791654,54.41546481,124.43,124.4,0.03]
[1741880791871,73.06511367,124.42,124.4,0.03]
[1741880792953,54.41546481,124.42,124.4,0.03]
[1741880793271,54.41546481,124.43,124.4,0.03]
[1741880794178,54.41546481,124.42,124.4,0.03]
[1741880794346,73.06511367,124.42,124.4,0.03]
[1741880795362,73.20727524,124.42,124.4,0.03]
[1741880795744,73.06511367,124.42,124.4,0.03]
[1741880796659,54.41546481,124.43,124.4,0.03]
[1741880797051,88.9769,124.49,124.4,54.44546481]
[1741880797251,54.41546481,124.46,124.41,54.44546481]
[1741880797462,18.64964886,124.46,124.41,54.44546481]
[1741880797661,18.71264886,124.46,124.41,54.44546481]
[1741880797971,0.063,124.46,124.41,0.17216157]
[1741880798167,54.47846481,124.46,124.41,54.58762638]
[1741880798467,54.47846481,124.46,124.41,0.17216157]
[1741880798668,54.41546481,124.44,124.41,0.03]
[1741880798855,54.41546481,124.43,124.41,0.03]
[1741880799048,54.41546481,124.42,124.41,0.03]
[1741880799279,73.06511367,124.42,124.41,0.03]
[1741880801856,54.41546481,124.42,124.41,0.03]
[1741880802365,54.41546481,124.43,124.41,0.03]
[1741880802684,18.64964886,124.44,124.41,0.03]
[1741880802685,93.06511367,124.42,124.41,0.03]
[1741880803057,38.64964886,124.42,124.41,0.03]
[1741880803384,93.06511367,124.42,124.41,0.03]
[1741880803763,38.64964886,124.42,124.41,0.03]
[1741880803962,93.06511367,124.42,124.41,0.03]
[1741880804167,54.41546481,124.43,124.41,0.03]
[1741880805759,74.41546481,124.42,124.41,0.03]
[1741880805966,20.0,124.42,124.41,0.03]
[1741880806362,93.06511367,124.42,124.41,0.03]
[1741880806682,20.0,124.42,124.41,0.03]
[1741880807069,93.06511367,124.42,124.41,0.03]
[1741880807692,101.10231367,124.42,124.41,0.03]
[1741880807897,101.24447524,124.42,124.41,0.03]
[1741880808395,18.79181043,124.41,124.4,0.03]
[1741880808578,156.00727524,124.41,124.4,0.03]
[1741880808763,156.14943681,124.41,124.4,0.03]
[1741880808964,73.34943681,124.41,124.4,0.03]
[1741880809570,81.38733681,124.41,124.4,0.03]
[1741880809791,18.79181043,124.37,124.34,0.063]
[1741880810090,18.64964886,124.35,124.34,0.063]
[1741880810296,18.79181043,124.37,124.34,0.063]
[1741880810601,18.64964886,124.35,124.34,0.063]
[1741880810885,73.06511367,124.35,124.34,0.063]
[1741880812176,20.0,124.36,124.34,0.063]
[1741880812494,73.06511367,124.37,124.34,0.063]
[1741880812664,3.93624659,124.41,124.36,54.41546481]
[1741880812865,0.5,124.47,124.39,54.41546481]
[1741880812866,8.0353,124.45,124.39,54.41546481]
[1741880813088,54.41546481,124.43,124.38,6.0677]
[1741880813295,54.41546481,124.43,124.34,0.20516157]
[1741880813296,18.64964886,124.4,124.35,60.47166481]
[1741880813501,18.64964886,124.4,124.36,54.41546481]
[1741880814281,63.07450678,124.4,124.34,0.063]
[1741880814483,36.38615792,124.38,124.34,0.063]
[1741880815183,36.38615792,124.37,124.34,0.063]
[1741880815767,8.0411,124.36,124.34,0.063]
[1741880816085,26.69034886,124.37,124.34,0.063]
[1741880816282,18.64964886,124.36,124.34,0.063]
[1741880816588,54.60915292,124.36,124.34,0.063]
[1741880816882,18.64964886,124.35,124.34,0.063]
[1741880817791,26.69144886,124.35,124.34,0.063]
[1741880818288,8.0414,124.36,124.34,0.063]
[1741880818466,26.69104886,124.36,124.34,0.063]
[1741880819890,18.64964886,124.35,124.34,0.063]
[1741880820089,73.40096335,124.35,124.34,0.063]
[1741880821487,73.25880178,124.35,124.34,0.063]
[1741880821976,81.30060178,124.35,124.34,0.063]
[1741880822177,26.69144886,124.35,124.34,0.063]
[1741880822483,81.30060178,124.35,124.34,0.063]
[1741880822683,81.44276335,124.35,124.34,0.063]
[1741880822873,81.03901553,124.35,124.34,0.063]
[1741880824186,26.42986261,124.35,124.34,0.063]
[1741880824495,81.03901553,124.35,124.34,0.063]
[1741880824690,26.42986261,124.35,124.34,0.063]
[1741880824992,81.03901553,124.35,124.34,0.063]
[1741880825190,26.42986261,124.35,124.34,0.063]
[1741880825397,90.8407,124.37,124.34,0.063]
[1741880825591,81.29900178,124.38,124.34,0.063]
[1741880825780,26.68984886,124.38,124.34,0.063]
[1741880825975,81.29900178,124.38,124.34,0.063]
[1741880826174,26.68984886,124.38,124.34,0.063]
[1741880826390,81.29900178,124.38,124.34,0.063]
[1741880826591,26.68984886,124.38,124.34,0.063]
[1741880826793,81.29900178,124.38,124.34,0.063]
[1741880827492,54.60915292,124.36,124.34,0.063]
[1741880828080,54.60915292,124.37,124.34,0.063]
[1741880828284,26.68964886,124.38,124.34,0.063]
[1741880828595,62.64875292,124.39,124.34,0.063]
[1741880828787,18.64964886,124.4,124.35,54.60915292]
[1741880828977,62.64735292,124.41,124.35,54.60915292]
[1741880829485,164.09630178,124.42,124.37,54.60915292]
[1741880829681,26.68714886,124.42,124.37,54.60915292]
[1741880829894,73.25880178,124.43,124.37,54.60915292]
[1741880830072,54.60915292,124.42,124.37,54.60915292]
[1741880830273,54.60915292,124.41,124.34,6.41086157]
[1741880830485,18.64964886,124.42,124.37,54.60915292]
[1741880830785,62.64705292,124.41,124.36,54.60915292]
[1741880830985,54.60915292,124.4,124.35,54.60915292]
[1741880831192,54.60915292,124.4,124.34,69.06221449]
[1741880832187,8.0392,124.39,124.34,69.06221449]
[1741880832574,8.0392,124.39,124.35,54.60915292]
[1741880832895,26.68814886,124.4,124.35,54.60915292]
[1741880833205,73.25880178,124.42,124.36,54.60915292]
[1741880833397,73.25880178,124.42,124.37,54.60915292]
[1741880833705,54.67215292,124.41,124.36,54.60915292]
[1741880833999,54.67215292,124.41,124.35,54.60915292]
[1741880834206,8.0385,124.4,124.36,54.60915292]
[1741880835006,8.0385,124.4,124.35,62.65045292]
[1741880836384,8.0385,124.4,124.34,36.44850069]
[1741880836385,18.64964886,124.39,124.34,36.44850069]
[1741880837011,36.38550069,124.38,124.34,0.063]
[1741880837215,55.03514955,124.39,124.34,0.063]
[1741880837425,36.38550069,124.39,124.34,44.63296226]
[1741880837709,36.38550069,124.39,124.34,36.59066226]
[1741880837885,8.0385,124.4,124.36,36.38550069]
[1741880838382,0.063,124.41,124.37,36.38550069]
[1741880838582,8.1011,124.41,124.36,44.42660069]
[1741880838810,0.063,124.41,124.37,36.52766226]
[1741880838983,0.063,124.41,124.37,0.14216157]
[1741880839305,0.063,124.41,124.38,36.38550069]
[1741880839686,0.063,124.41,124.35,9.94216157]
[1741880839687,36.38550069,124.4,124.35,36.38550069]
[1741880840211,8.0392,124.4,124.35,44.42720069]
[1741880840500,44.42470069,124.4,124.35,36.38550069]
[1741880840700,36.38550069,124.39,124.34,0.20516157]
[1741880841605,20.063,124.41,124.36,36.38550069]
[1741880841810,20.063,124.41,124.37,36.38550069]
[1741880842104,0.063,124.41,124.39,36.38550069]
[1741880842686,0.063,124.41,124.39,44.42460069]
[1741880842895,0.063,124.41,124.38,8.0398]
[1741880843092,0.063,124.41,124.39,36.38550069]
[1741880843294,0.063,124.41,124.4,36.52766226]
[1741880843710,0.063,124.41,124.4,36.66982383]
[1741880844424,0.063,124.41,124.4,44.70832383]
[1741880845518,0.063,124.41,124.4,356.70832383]
[1741880846024,0.063,124.41,124.4,36.38550069]
[1741880846194,0.063,124.41,124.39,0.14216157]
[1741880846395,0.063,124.41,124.4,36.52766226]
[1741880846707,0.063,124.41,124.39,36.38550069]
[1741880847497,0.063,124.41,124.37,46.36982383]
[1741880847698,0.063,124.41,124.39,36.38550069]
[1741880848015,0.063,124.41,124.4,36.38550069]
[1741880848391,6.41047828,124.5,124.45,50.0]
[1741880848587,0.063,124.54,124.5,0.28432314]